Cogmind - Beta 11 @@@ ROGUE MODE // 2022.03.21 @ 12:52:25 Player: Gris Result: Destroyed by G-47 Trooper with Particle Gun Performance ------------- Evolutions (2) 1000 Regions Visited (4) 800 Robots Destroyed (54) 270 Value Destroyed (1280) 1280 Prototype IDs (2) 40 Alien Tech Used (0) 0 Bonus (32) 32 TOTAL SCORE: 3422 Bonus ------- High Alert Combat Kills 32 Cogmind --------- Core Integrity 0/550 Matter 290/300 Energy 27/100 System Corruption 0% Temperature Warm (120) Movement Core (750) Ox14 Location -8/Materials Parts ------- > --- POWER (2) -------- (None) > --- PROPULSION (3) --- (None) > --- UTILITY (4) ------ High-capacity Storage Unit > --- WEAPON (2) ------- Beamcaster > --- INVENTORY (20) --- Advanced Treads Improved Signal Interpreter Field Recycling Unit (0) Field Laser Peak State ------------ > --- POWER ------------ Light Deuterium Engine > --- PROPULSION ------- Aluminum Leg Carbon-fiber Leg Makeshift Leg > --- UTILITY ---------- Improved Heat Sink High-capacity Storage Unit Advanced Weight Redist. System Improved Light Armor Plating > --- WEAPON ----------- Advanced Beam Rifle Advanced Beam Rifle > --- INVENTORY -------- Carbon-fiber Leg Improved Signal Interpreter Improved EM Shotgun Improved EM Shotgun Beamcaster [Rating: 30] Favorites ----------- Power Ion Engine Engine Ion Engine Power Core Light Nuclear Core Propulsion Aluminum Leg Treads Light Treads Leg Aluminum Leg Flight Unit VTOL Module Utility Terrain Scanner Device Terrain Scanner Storage Large Storage Unit Processor Targeting Computer Protection Light Armor Plating Weapon Advanced Beam Rifle Energy Gun Advanced Beam Rifle Ballistic Gun Assault Rifle Launcher Mini Grenade Launcher Impact Weapon Flail Build | -11 -10 -9 -9 -8 ------- Run | Scr Mat Mat Min Mat Slots Evolved 4 | . . 2 . 2 Power 1 | . . . . 1 Propulsion 1 | . . . . 1 Utility 2 | . . 2 . . Weapon . | . . . . . Parts Attached 58 | 7 22 14 7 8 Power 4 | 2 . 1 1 . Engine 3 | 2 . . 1 . Core 1 | . . 1 . . Reactor . | . . . . . Propulsion 16 | 2 6 2 3 3 Treads 2 | 2 . . . . Leg 11 | . 3 2 3 3 Wheel . | . . . . . Hover . | . . . . . Flight 3 | . 3 . . . Utility 21 | 1 10 6 2 2 Device 8 | . 4 2 1 1 Storage 6 | 1 4 . . 1 Processor 2 | . 1 1 . . Hackware . | . . . . . Protection 5 | . 1 3 1 . Artifact . | . . . . . Weapon 17 | 2 6 5 1 3 Energy Gun 11 | 1 3 3 1 3 Energy Cannon . | . . . . . Ballistic Gun 2 | 1 1 . . . Ballistic Cannon . | . . . . . Launcher 2 | . 1 1 . . Special Weapon . | . . . . . Impact Weapon 2 | . 1 1 . . Slashing Weapon . | . . . . . Piercing Weapon . | . . . . . Special Melee Weapon . | . . . . . Unidentified Prototypes 2 | . 1 1 . . Corrupted Parts 1 | . . 1 . . System Corruption 6 | . . 6 . . Parts Lost 21 | . . 3 6 12 Power 2 | . . . 1 1 Propulsion 8 | . . 1 3 4 Utility 6 | . . 2 1 3 Weapon 5 | . . . 1 4 Highest Loss Streak 11 | . . 2 4 11 To Critical Strikes . | . . . . . Average Slot Usage (%) 86 | . 98 77 71 77 Engine 10 | . 14 5 5 7 Core 1 | . . 5 . . Treads 8 | . 15 . . . Leg 15 | . 11 21 16 22 Device 11 | . 12 1 17 15 Storage 4 | . 8 . . 8 Processor 4 | . 5 10 . . Protection 4 | . . 11 8 7 Energy Gun 14 | . 12 12 18 16 Ballistic Gun 4 | . 8 . . . Launcher 1 | . . 2 3 . Impact Weapon 4 | . 5 6 . . Naked Turns . | . . . . . Heaviest Build 54 | 14 32 16 14 54 Greatest Support 54 | 40 40 20 30 54 Greatest Overweight (x) 13 | 3 7 1 1 13 Average Overweight (x) . | . . . . . Largest Inventory Capacity 20 | 8 15 5 5 20 Average Capacity 8 | 7 9 5 5 18 Most Carried 15 | 6 15 5 5 7 Average Carried 5 | 3 7 4 4 5 Final Capacity 20 | 8 5 5 5 20 Final Carried 5 | 3 5 4 5 4 Class Distribution -------------------- 74% | Mutant 25% | Scavenger-Mutant Dominant Class ---------------- Mutant | -10/Materials Mutant | -9/Materials Scavenger-Mutant | -9/Mines Scavenger-Mutant | -8/Materials Resources | -11 -10 -9 -9 -8 ----------- Run | Scr Mat Mat Min Mat Matter Collected 1049 | 244 353 120 285 47 Remotely . | . . . . . Salvage Created 1351 | . 377 553 170 251 Parts 104 | . 35 34 7 28 Haulers Intercepted . | . . . . . Recyclers Shooed . | . . . . . Parts Field Recycled . | . . . . . Retrieved Matter . | . . . . . Parts Self-Destructed . | . . . . . Prevented . | . . . . . Kills | -11 -10 -9 -9 -8 ------- Run | Scr Mat Mat Min Mat Combat Hostiles Destroyed 53 | . 14 14 16 9 Guns 28 | . 6 6 7 9 AOE 25 | . 8 8 9 . Classes Destroyed 11 | . 5 4 2 . Worker 1 | . 1 . . . Builder 2 | . . 2 . . Recycler 1 | . 1 . . . Operator 1 | . . 1 . . Watcher 5 | . 2 2 . 1 Swarmer 20 | . 9 . 4 7 Grunt 18 | . 5 11 1 1 Brawler 2 | . . 1 1 . Sentry 3 | . . 2 . 1 Demolisher 1 | . . . 1 . Assembled 9 | . . . 9 . Best Kill Streak 10 | . 7 10 7 6 Combat Bots Only 8 | . 6 8 7 6 Max Kills in Single Turn 4 | . 4 3 3 1 Gunslinging . | . . . . . Exploded 4 | . 4 3 3 . Melee . | . . . . . Uniques/NPCs Destroyed . | . . . . . Combat | -11 -10 -9 -9 -8 -------- Run | Scr Mat Mat Min Mat Damage Taken 3079 | . 471 596 426 1586 Core 826 | . 100 83 81 562 Absorbed by Shields . | . . . . . Core Remaining (%) 73 | 100 60 . 59 . Volleys Fired 100 | . 28 31 19 22 Largest 2 | . 2 2 2 2 Hottest 122 | . 70 106 122 122 Shots Fired 148 | . 46 36 32 34 Gun 131 | . 44 30 23 34 Cannon . | . . . . . Launcher 17 | . 2 6 9 . Special . | . . . . . Kinetic 18 | . 18 . . . Thermal 70 | . 15 7 23 25 Explosive 17 | . 2 6 9 . Electromagnetic 43 | . 11 23 . 9 Robot Hit Streak 18 | . 6 18 5 6 Robot Miss Streak 4 | . 4 3 3 2 Penetration Max . | . . . . . Secondary Targets 3 | . . . 2 1 Max Gunslinging Chain 1 | . . . 1 1 Shots Hit Robots 96 | . 27 30 15 24 Core Hits 84 | . 23 27 21 13 Critical Kills . | . . . . . Critical Parts Destroyed . | . . . . . Critical Strikes 2 | . . . 1 1 Burn 2 | . . . 1 1 Melee Attacks 3 | . 3 . . . Impact 3 | . 3 . . . Slashing . | . . . . . Piercing . | . . . . . Sneak Attacks . | . . . . . Combat Hostiles . | . . . . . Follow-up Attacks . | . . . . . Damage Inflicted 3730 | . 891 1624 711 504 Guns 1558 | . 361 493 200 504 Cannons . | . . . . . Explosions 2112 | . 476 1131 505 . Melee 54 | . 54 . . . Ramming 6 | . . . 6 . Kinetic 90 | . 90 . . . Thermal 1468 | . 287 616 200 365 Explosive 1388 | . 288 595 505 . Electromagnetic 724 | . 172 413 . 139 Impact 54 | . 54 . . . Slashing . | . . . . . Piercing . | . . . . . Highest Corruption 10 | . 2 10 10 . Average Corruption 5 | . 1 8 10 . Corruption Purged . | . . . . . Corruption Blocked . | . . . . . Effects 63 | . 24 10 29 . Message Errors 19 | . 4 4 11 . Matter Fused 16 | . 6 1 9 . Heat Flow Errors 7 | . 4 3 . . Energy Discharges 7 | . 5 . 2 . Data Loss (minor) 6 | . 2 2 2 . Data Loss (major) 2 | . 1 . 1 . Misfires 3 | . 1 . 2 . Alerts 2 | . 1 . 1 . Weapon Failures 1 | . . . 1 . Overload Shots . | . . . . . Overflow Damage 212 | . 10 197 5 . Projectiles . | . . . . . Explosions 212 | . 10 197 5 . Melee . | . . . . . Knockbacks . | . . . . . Impact . | . . . . . Kinetic . | . . . . . Secondary . | . . . . . Self-Inflicted Damage 369 | . 107 211 51 . Shots 15 | . 4 6 5 . Rammed . | . . . . . Targets Rammed 1 | . . . 1 . Kicked 1 | . . . 1 . Crushed . | . . . . . Highest Temperature 503 | . 165 503 36 111 Average Temperature 85 | . 32 139 13 23 Received Heat Transfer 663 | . 78 189 . 396 Effects 7 | . . 7 . . Shutdowns 2 | . . 2 . . Energy Bleed 1 | . . 1 . . Short Circuit 1 | . . 1 . . Damage (minor) 1 | . . 1 . . Damage (major) 2 | . . 2 . . Siege Activations . | . . . . . Robots Corrupted . | . . . . . Combat Hostiles . | . . . . . Parts Fried 5 | . . 2 . 3 Impact Corruptions . | . . . . . Robots Melted . | . . . . . Combat Hostiles . | . . . . . Parts Melted 2 | . 1 . . 1 Heat Transferred 2228 | . 546 498 444 740 Parts Sabotaged . | . . . . . Parts Stolen . | . . . . . Parts Stripped . | . . . . . Power Chain Reactions 4 | . 3 1 . . Missiles Intercepted . | . . . . . Alert | -11 -10 -9 -9 -8 ------- Run | Scr Mat Mat Min Mat Peak Influence 515 | . 184 453 515 267 Initial 176 | . . 58 176 118 Average 156 | . 77 183 358 116 Maximum Alert Level 2 | . . 2 2 1 Low Security (%) 71 | 100 100 58 4 90 Level 1 16 | . . 24 54 9 Level 2 12 | . . 17 41 . Level 3 . | . . . . . Level 4 . | . . . . . Level 5 . | . . . . . High Security . | . . . . . Max Security . | . . . . . Squads Dispatched 10 | . 3 3 . 4 Investigation 2 | . 1 1 . . Extermination . | . . . . . Reinforcement 6 | . 2 2 . 2 Assault . | . . . . . Garrison 2 | . . . . 2 Intercept . | . . . . . Searches Triggered . | . . . . . Construction Impeded . | . . . . . Haulers Reinforced . | . . . . . Active Scanning Responses . | . . . . . Cargo Convoy Interrupts . | . . . . . Stealth | -11 -10 -9 -9 -8 --------- Run | Scr Mat Mat Min Mat Distress Signals 1 | . . . . 1 Communications Jammed . | . . . . . Distress Signals . | . . . . . Times Spotted 78 | . 25 20 15 18 Peak Tracking Total 7 | . 6 7 4 7 Tactical Retreats 2 | . . 1 . 1 Traps | -11 -10 -9 -9 -8 ------- Run | Scr Mat Mat Min Mat Traps Triggered 7 | . 6 1 . . Indirectly . | . . . . . Trap Hack Attempts . | . . . . . Triggered . | . . . . . Disarmed . | . . . . . Reprogrammed . | . . . . . Reused . | . . . . . Traps Extracted . | . . . . . Installed . | . . . . . Triggered . | . . . . . Machines | -11 -10 -9 -9 -8 ---------- Run | Scr Mat Mat Min Mat Machines Disabled 6 | . 1 5 . . Max in Single Turn 3 | . 1 3 . . Machines Sabotaged . | . . . . . Garrisons Compromised . | . . . . . Overloaded Fab Kills . | . . . . . Hacking | -11 -10 -9 -9 -8 --------- Run | Scr Mat Mat Min Mat Machines Accessed 6 | . 3 1 . 2 Terminals 6 | . 3 1 . 2 Fabricators . | . . . . . Repair Stations . | . . . . . Recycling Units . | . . . . . Scanalyzers . | . . . . . Garrison Access . | . . . . . Total Hacks 15 | . 8 3 . 4 Successful 12 | . 7 2 . 3 Failed 3 | . 1 1 . 1 Catastrophic . | . . . . . Database Lockouts . | . . . . . Manual . | . . . . . Terminals 15 | . 8 3 . 4 Fabricators . | . . . . . Repair Stations . | . . . . . Recycling Units . | . . . . . Scanalyzers . | . . . . . Garrison Access . | . . . . . Terminal Hacks 12 | . 7 2 . 3 Record 4 | . 3 1 . . Alert Level 4 | . 1 1 . 2 Unreport Threat 1 | . . . . 1 Dispatch Records 2 | . 2 . . . Zone Layout 1 | . 1 . . . Fabricator Hacks . | . . . . . Repair Station Hacks . | . . . . . Recycling Unit Hacks . | . . . . . Scanalyzer . | . . . . . Garrison Access Hacks . | . . . . . Unauthorized Hacks . | . . . . . Terminals . | . . . . . Fabricators . | . . . . . Repair Stations . | . . . . . Recycling Units . | . . . . . Scanalyzers . | . . . . . Garrison Access . | . . . . . Data Cores Recovered . | . . . . . Used . | . . . . . Hacking Detections 5 | . 2 1 . 2 Full Trace Events . | . . . . . Feedback Events . | . . . . . Feedback Blocked . | . . . . . Robot Schematics Acquired . | . . . . . Robots Built . | . . . . . Authchips . | . . . . . Time . | . . . . . Total Robot Build Rating . | . . . . . Part Schematics Acquired . | . . . . . Parts Built . | . . . . . Authchips . | . . . . . Time . | . . . . . Total Part Build Rating . | . . . . . Parts Repaired . | . . . . . Time . | . . . . . Parts Recycled . | . . . . . Recycled Matter . | . . . . . Retrieved Matter . | . . . . . Retrieved Components . | . . . . . Parts Scanalyzed . | . . . . . Part Schematics Acquired . | . . . . . Parts Damaged . | . . . . . Bothacking | -11 -10 -9 -9 -8 ------------ Run | Scr Mat Mat Min Mat Used RIF Installer . | . . . . . Robots Hacked . | . . . . . Non-combat . | . . . . . Combat . | . . . . . Robot Hacks Applied . | . . . . . Relay Couplers Released . | . . . . . Fabnet Peak Effective % . | . . . . . Robots Rewired . | . . . . . Allies Hacked . | . . . . . Hacks Repelled . | . . . . . Allies | -11 -10 -9 -9 -8 -------- Run | Scr Mat Mat Min Mat Total Allies . | . . . . . Largest Group . | . . . . . Highest-Rated Group . | . . . . . Highest-Rated Ally . | . . . . . Total Orders . | . . . . . Ally Attacks . | . . . . . Total Damage . | . . . . . Kills . | . . . . . Allies Corrupted . | . . . . . Allies Melted . | . . . . . Intel | -11 -10 -9 -9 -8 ------- Run | Scr Mat Mat Min Mat Robot Analysis Total . | . . . . . Derelict Logs Recovered 1 | . . . 1 . Drone Launches . | . . . . . Drone Recoveries . | . . . . . Exploration | -11 -10 -9 -9 -8 ------------- Run | Scr Mat Mat Min Mat Turns Passed 3571 | 132 1805 583 788 263 Spaces Moved 2261 | 60 1147 364 559 131 Core 130 | 23 . . 106 1 Treads 595 | 37 558 . . . Legs 1522 | . 575 364 453 130 Wheels . | . . . . . Hover . | . . . . . Flight 14 | . 14 . . . Fastest Speed 50 | 50 112 120 100 126 Average Speed 132 | 132 141 120 121 137 Slowest Speed 700 | 200 595 190 130 700 Overloaded Moves . | . . . . . Propulsion Burnouts . | . . . . . Robots Hopped . | . . . . . Cave-ins Triggered 1 | . . . . 1 Exploration Rate (%) 46 | 5 93 31 91 13 Regions Visited 4 Branch Regions 1 Pre-discovered Areas . | . . . . . Known Exits Taken . | . . . . . Unknown Exits Taken 4 | 1 1 1 1 . Scrap Searched 1 | . . . 1 . Spaces Dug . | . . . . . Terrain Destroyed 142 | . 24 35 83 . Melee . | . . . . . Projectile . | . . . . . AOE 142 | . 24 35 83 . Terrain Rammed . | . . . . . Walls Destroyed . | . . . . . Machines Disabled . | . . . . . Actions | -11 -10 -9 -9 -8 --------- Run | Scr Mat Mat Min Mat Total 2683 | 112 1283 472 637 179 Wait 178 | 39 33 50 43 13 Move 2257 | 59 1146 363 558 131 Hop . | . . . . . Pick Up 49 | 6 26 5 7 5 Fast Attach 19 | 3 4 10 1 1 Attach 23 | 3 6 2 6 6 Detach . | . . . . . Swap 16 | 1 12 2 . 1 Drop 37 | 1 25 9 2 . Fire 100 | . 28 31 19 22 Melee 3 | . 3 . . . Ram . | . . . . . Kick 1 | . . . 1 . Crush . | . . . . . Escape Stasis . | . . . . . Rewire . | . . . . . Trap . | . . . . . Miscellaneous . | . . . . . Route ------- -11/Scrapyard -10/Materials (discovered 5 exits: *Mat x3 / [*Min x2]) -9/Materials -9/Mines -8/Materials History --------- Turn | Location | Event 6 | -11/Scrapyard | Discovered new exit (range 16) 133 | -11/Scrapyard | Entered Materials 306 | -10/Materials | Build established: Mutant 470 | -10/Materials | Discovered new exit (range 5) 815 | -10/Materials | Discovered new exit (range 14) 1242 | -10/Materials | Discovered new exit (range 11) 1372 | -10/Materials | Discovered new exit (range 13) 1721 | -10/Materials | Discovered new exit (range 9) 1938 | -10/Materials | Entered another Materials area 1938 | -9/Materials | Evolved 2 slots: Utility x2 2314 | -9/Materials | System corruption reached 10% 2442 | -9/Materials | Destroyed 8 combat bots 2480 | -9/Materials | Discovered new exit (range 12) 2521 | -9/Materials | Entered Mines 2557 | -9/Mines | Met a Derelict bent on vengeance 2600 | -9/Mines | Assembled infested the area 2821 | -9/Mines | Destroyed 7 combat bots 2824 | -9/Mines | Lost 4 parts (2n1u1w) 2898 | -9/Mines | A Derelict revealed a hidden shortcut to a safe place 3210 | -9/Mines | Build established: Scavenger-Mutant 3296 | -9/Mines | Discovered new exit (range 11) 3309 | -9/Mines | Entered Materials 3309 | -8/Materials | Evolved 2 slots: Power x1, Propulsion x1 3448 | -8/Materials | Garrison activated, responded to threat 3559 | -8/Materials | Core integrity fell below 50% 3570 | -8/Materials | Core integrity fell below 20% 3572 | -8/Materials | Crushed by falling debris 3572 | -8/Materials | Destroyed by G-47 Trooper with Particle Gun Last Messages --------------- Carbon-fiber Leg destroyed. Knocked back. Penetrated by Slug. Imp. EM Shotgun destroyed. Critical hit (Burn: +37). S-10 Pest misfires. Knocked back. Critical hit (Burn: +37). Acquired 2 matter. S-10 Pest IFF system glitched. Critical hit (Burn: +37). Adv. Weight Redist. System destroyed. Imp. Heat Sink destroyed. Carbon-fiber Leg destroyed. S-10 Pest IFF system glitched. Critical hit (Burn: +37). R-06 Scavenger collects Lgt. Ion Engine. The unstable cave ceiling collapses. Crushed by falling debris. [Achievement: Unlikely Earthworm] Map ----- +----------------------------------------------------+ | | | | | | | | | | | | | | | | | | | | | | | | | | | | | | | | | | | | | | | | | | | ????????????????????????????????????????????????? | | ??????????????????????????????######????????????? | | ????????????????????######????# #????????????? | | ??????????????#######;##%###### #????????????? | | ??????????????# % @g # #????????????? | | ??????????????# %% gg + #????????????? | | ??????????????#### s a##### # #????????????? | | ?????????????????# %% #???# # #????????????? | | ????????????######o% #???# + #????????????? | | ????????????# =%=rH #???# # #????????????? | | ????????????# =%[[ #??## ######??????????#?? | | ????????????# ###+;"###??# ############ #?? | | ????????????# ??#!%= ?????# !*=*%= #?? | | ??????????? +???#%"" ""???# [%=! #?? | | ??????????"?????#*"" """ ?# ###%[#######?????? | | ????????????????# "T """ #######?#%%#???????????? | | ????????????????# "" ????????# #???????????? | | ????????????????# "" """ #???????# #???????????? | | ????????????????+ ?? """ #???????# #???????????? | | ????????????????# ?? ""? ????????# #???????????? | | ????????????????# ?? ???????????# #???????????? | | ????????????????##??##???????????# #???????????? | | ?????????????????????????????????# #???????????? | | ?????????????????????????????????# #???????????? | | ?????????????????????????????????# #???????????? | | ?????????????????????????????????# =#???????????? | | ??????????????????????????######## %####+## #???? | | ???????????????????######## #???? | | ???????????????????# # #???? | +----------------------------------------------------+ Best States ------------- Heat Dissipation 48 Energy Generation 14 Energy Capacity 250 Matter Stores 300 Matter Capacity 300 Sight Range 16 Robot Scan Range 14 Terrain Scan Range 14 Terrain Scan Density 10 Additional Mass Support 9 Armor Coverage 300 Resistance: EM 15 Evasion (%) 55 Targeting Accuracy 6 Recoil Reduction 2 Item Schematics ----------------- None Robot Schematics ------------------ None Fabricated ------------ Nothing Alien Tech Used ----------------- None Achievements -------------- Everything Is Under Control I Survived The Infestation System Compromised Troublemaker Unlikely Earthworm Challenges ------------ None Game ------ Seed ThermoelectricGammaCanceller Manual? 0 Play Time 01:10:55 Cumulative 5.7 hours Start 2022.03.20 @ 21:27:20 End 2022.03.21 @ 12:52:25 Sessions 5 Manual Loads 0 Difficulty Rogue Special Mode None Game No. 11 Rogue 11 Adventurer 0 Explorer 0 Win Type - Total 0 Types 0/0/0/0/0/0/0/0/0 Lore% 2 Gallery% 6 Achievement% 8 Wizard Run 0 Options --------- ASCII 0 Keyboard 0 Movement Mouse Keybinds 0 Fullscreen 1 Font 18/SmallcapsGlow Map View 76x50 Tactical HUD 0 Map Filters NONE Filters NONE Steam 1 RUN: 2f1725e2-d676-40af-a595-b7e5fe424b34